bitfinex/quotes_BTCUSD_20250719
["timestamp","ask_amount","ask_price","bid_price","bid_amount"]
[1752958875332,0.27630864,117730.0,117720.0,0.44857458]
[1752958875543,0.40810864,117730.0,117720.0,0.44857458]
[1752958875751,0.40810864,117730.0,117720.0,0.45706931]
[1752958878939,0.40810864,117730.0,117720.0,0.27867992]
[1752958879357,0.40310864,117730.0,117720.0,0.27867992]
[1752958879560,0.40310864,117730.0,117720.0,0.28717465]
[1752958879763,0.40294864,117730.0,117720.0,0.28717465]
[1752958879966,0.40294864,117730.0,117720.0,0.27867992]
[1752958881875,0.40286864,117730.0,117720.0,0.27867992]
[1752958884347,0.01242427,117730.0,117720.0,0.84717782]
[1752958884562,0.004,117730.0,117720.0,0.84717782]
[1752958885269,0.003,117730.0,117720.0,0.84717782]
[1752958885498,0.51907863,117740.0,117730.0,0.22706138]
[1752958885708,0.60458891,117740.0,117730.0,0.4737613]
[1752958885918,0.60463145,117740.0,117730.0,0.4737613]
[1752958886368,0.60463138,117740.0,117730.0,0.4737613]
[1752958886577,0.4936,117740.0,117730.0,0.4737613]
[1752958886790,0.00049747,117750.0,117740.0,0.22704479]
[1752958886994,0.00909341,117750.0,117740.0,0.60212471]
[1752958887198,0.00049747,117750.0,117740.0,0.60522471]
[1752958888777,0.00049747,117750.0,117740.0,0.60622471]
[1752958889003,0.01211468,117750.0,117740.0,0.60722471]
[1752958889234,0.00911468,117750.0,117740.0,0.60622471]
[1752958889476,0.01011468,117750.0,117740.0,0.60722471]
[1752958890233,0.00149747,117750.0,117740.0,0.60722471]
[1752958891699,0.00149747,117750.0,117740.0,0.36558479]
[1752958891927,0.00998946,117750.0,117740.0,0.60722471]
[1752958892375,0.01848152,117750.0,117740.0,0.60722471]
[1752958892570,0.00998946,117750.0,117740.0,0.60722471]
[1752958892794,0.00149747,117750.0,117740.0,0.60722471]
[1752958908025,0.00149747,117750.0,117740.0,1.03273499]
[1752958908168,0.00149747,117750.0,117740.0,1.27437491]
[1752958908999,0.00149747,117750.0,117740.0,1.29985391]
[1752958909241,0.00049747,117750.0,117740.0,1.29785391]
[1752958909455,0.00249747,117750.0,117740.0,1.30185391]
[1752958909594,0.00249747,117750.0,117740.0,2.47601691]
[1752958910307,1e-08,117750.0,117740.0,2.52601691]
[1752958911594,1e-08,117750.0,117740.0,2.54055776]
[1752958911894,0.06777651,117800.0,117790.0,0.4676018]
[1752958912028,0.06777651,117800.0,117790.0,0.6008418]
[1752958912244,0.06777651,117800.0,117790.0,0.6040518]
[1752958912858,0.01170687,117820.0,117810.0,0.19522872]
[1752958913053,0.10933596,117830.0,117820.0,0.19521237]
[1752958913264,0.23320887,117830.0,117820.0,0.43685229]
[1752958913467,0.40294515,117830.0,117820.0,0.4198779]
[1752958913769,0.39445857,117830.0,117820.0,0.4198779]
[1752958914003,0.39445857,117830.0,117820.0,0.42836535]
[1752958914644,0.38597192,117830.0,117810.0,0.31812989]
[1752958914817,0.38597192,117830.0,117820.0,0.37399992]
[1752958914818,0.38875192,117830.0,117820.0,0.37399992]
[1752958915132,0.38875192,117830.0,117820.0,0.13236]
[1752958915564,0.38597192,117830.0,117820.0,0.13136]
[1752958915966,0.32319541,117830.0,117820.0,0.30959791]
[1752958916171,0.32319541,117830.0,117820.0,0.55123783]
[1752958916374,0.32319541,117830.0,117820.0,0.54275038]
[1752958917414,0.32319541,117830.0,117820.0,0.30111046]
[1752958917705,0.32319541,117830.0,117820.0,0.30959798]
[1752958917911,0.33219541,117830.0,117820.0,0.31059798]
[1752958918353,0.32370868,117830.0,117820.0,0.30211046]
[1752958918537,0.32370868,117830.0,117820.0,0.13236]
[1752958918956,0.32370868,117830.0,117820.0,0.001]
[1752958925800,0.45514868,117830.0,117820.0,0.001]
[1752958926630,0.32370868,117830.0,117820.0,0.001]
[1752958927366,0.31510314,117830.0,117820.0,0.001]
[1752958930399,0.32345358,117830.0,117820.0,0.001]
[1752958931288,0.31510314,117830.0,117820.0,0.001]
[1752958933421,0.99704353,117830.0,117820.0,0.001]
[1752958933630,1.00555379,117830.0,117820.0,0.001]
[1752958936347,1.01345377,117830.0,117820.0,0.001]
[1752958937746,1.01345377,117830.0,117810.0,0.00014934]
[1752958937747,0.56467868,117820.0,117810.0,0.00014934]
[1752958937971,1.02839888,117820.0,117810.0,0.00014934]
[1752958938139,1.1141585,117820.0,117810.0,0.00014934]
[1752958939171,1.1161585,117820.0,117810.0,0.00014934]
[1752958939612,1.1251585,117820.0,117810.0,0.00114934]
[1752958942603,0.16983695,117760.0,117750.0,0.46346989]
[1752958942808,0.20380338,117760.0,117750.0,0.47412209]
[1752958943020,0.2038036,117760.0,117750.0,0.47412209]
[1752958943239,0.2038036,117760.0,117750.0,0.48261422]
[1752958943447,0.01698304,117760.0,117750.0,0.49110628]
[1752958943660,0.02547474,117760.0,117750.0,0.49110628]
[1752958944073,0.20380346,117760.0,117750.0,0.49119103]
[1752958944282,0.2142953,117760.0,117750.0,0.49119103]
[1752958945224,0.22278158,117760.0,117750.0,0.49219103]
[1752958946438,0.03596102,117760.0,117750.0,0.49219103]
[1752958947831,0.02746932,117760.0,117750.0,0.49219103]
[1752958948786,0.03596102,117760.0,117750.0,0.49219103]
[1752958949210,0.02746932,117760.0,117750.0,0.25055111]
[1752958949464,0.02746932,117760.0,117750.0,0.49219103]
[1752958951822,0.03596102,117760.0,117750.0,0.49219103]
[1752958952781,0.02746932,117760.0,117750.0,0.49219103]
[1752958953996,0.01048628,117760.0,117750.0,0.49219103]
[1752958954198,0.002,117760.0,117750.0,0.49219103]
[1752958967478,0.002,117760.0,117750.0,0.73383095]
[1752958968348,0.002,117760.0,117750.0,0.25055111]
[1752958968558,0.002,117760.0,117750.0,0.49219103]
[1752958968974,0.002,117760.0,117750.0,0.51767103]
[1752958973360,0.03258423,117760.0,117750.0,0.17302988]
[1752958973569,0.03258423,117760.0,117750.0,0.56882663]
[1752958973570,0.0240926,117760.0,117750.0,0.56882663]
[1752958973707,0.04107578,117760.0,117750.0,0.56882663]
[1752958973907,0.22621331,117760.0,117750.0,0.55184229]
[1752958974110,0.2340219,117760.0,117750.0,0.56033471]
[1752958974321,0.2340219,117760.0,117750.0,0.56878706]
[1752958974559,0.2340219,117760.0,117750.0,0.57727934]
[1752958974770,0.2340219,117760.0,117750.0,0.45497154]
[1752958974985,0.2340219,117760.0,117750.0,0.58581154]
[1752958975208,0.2340219,117760.0,117750.0,0.57731934]
[1752958975426,0.22553042,117760.0,117750.0,0.57731934]
[1752958975632,0.21703872,117760.0,117750.0,0.55184229]
[1752958975812,0.21703872,117760.0,117750.0,0.56033464]
[1752958976886,0.21703872,117760.0,117750.0,0.42100229]
[1752958977118,0.29405723,117760.0,117750.0,0.00108475]
[1752958977330,0.29405723,117760.0,117750.0,0.13188475]
[1752958977748,0.29405723,117760.0,117750.0,0.00108475]
[1752958978193,0.29205723,117760.0,117750.0,0.00108475]
[1752958978361,0.29405723,117760.0,117750.0,0.00108475]
[1752958978807,0.29405723,117760.0,117750.0,8.475e-05]
[1752958979438,0.29405723,117760.0,117750.0,0.24172467]
[1752958980267,0.12422028,117760.0,117750.0,0.42211861]
[1752958980479,0.002,117760.0,117750.0,0.46399544]
[1752958980676,0.002,117760.0,117750.0,0.48247544]
[1752958980800,0.002,117760.0,117750.0,0.74959636]
[1752958981253,0.002,117760.0,117750.0,1.08959636]
[1752958982641,0.002,117760.0,117750.0,1.09159636]
[1752958983249,0.00837078,117780.0,117770.0,0.19529503]
[1752958983414,0.00848982,117780.0,117770.0,0.56978495]
[1752958983615,0.02546983,117780.0,117770.0,0.56978495]
[1752958983819,0.03057976,117780.0,117770.0,0.56978495]
[1752958984101,0.01359982,117780.0,117770.0,0.56978495]
[1752958984314,0.00511,117780.0,117770.0,0.56978495]
[1752958984641,0.00611,117780.0,117770.0,0.57078495]
[1752958986825,0.001,117780.0,117770.0,0.57078495]
[1752958987029,0.00932928,117780.0,117770.0,0.58906495]
[1752958987228,0.001,117780.0,117770.0,0.57396495]
[1752958987453,0.001,117780.0,117770.0,0.57078495]
[1752958988362,0.00961752,117780.0,117770.0,0.57078495]
[1752958990200,0.001,117780.0,117770.0,0.57078495]
[1752958990414,0.001,117780.0,117770.0,0.60486495]
[1752958991057,0.23258823,117780.0,117770.0,0.1318]
[1752958991275,0.30960898,117780.0,117770.0,0.13184]
[1752958991497,0.38935609,117780.0,117770.0,0.001]
[1752958991747,0.30960898,117780.0,117770.0,0.001]
[1752958991944,0.5512489,117780.0,117770.0,0.001]
[1752958992157,0.56578975,117780.0,117770.0,0.001]
[1752958994961,0.32414983,117780.0,117770.0,0.001]
[1752958995132,0.44052898,117780.0,117770.0,0.001]
[1752958997388,0.44048898,117780.0,117770.0,0.001]
[1752958999320,0.30960898,117780.0,117770.0,0.001]
[1752959001568,0.65154937,117780.0,117770.0,0.001]
[1752959001978,0.56578975,117780.0,117770.0,0.001]
[1752959007422,0.54880916,117780.0,117750.0,8.475e-05]
[1752959007605,0.18682013,117760.0,117750.0,8.475e-05]
[1752959007820,0.27430041,117760.0,117750.0,8.475e-05]
[1752959008220,0.27745041,117760.0,117750.0,8.475e-05]
[1752959008827,0.27845041,117760.0,117750.0,0.00208475]
[1752959010381,0.27845041,117760.0,117750.0,0.24372467]
[1752959011985,0.27845041,117760.0,117750.0,0.00208475]
[1752959012154,0.27845041,117760.0,117750.0,0.24372467]
[1752959013553,0.29505041,117760.0,117750.0,0.24372467]
[1752959014441,0.31065041,117760.0,117750.0,0.24372467]
[1752959015072,0.31065041,117760.0,117750.0,0.00208475]
[1752959018090,0.31065041,117760.0,117750.0,0.24372467]
[1752959020931,0.31065041,117760.0,117750.0,0.42206861]
[1752959021149,0.29505041,117760.0,117750.0,0.4305611]
[1752959021578,0.28694225,117760.0,117750.0,0.44958558]
[1752959021796,0.10012155,117760.0,117750.0,0.45807771]
[1752959022021,0.12047614,117760.0,117750.0,0.47387721]
[1752959022235,0.29031309,117760.0,117750.0,0.44958515]
[1752959022653,0.28379182,117760.0,117750.0,0.44109302]
[1752959022938,0.28694182,117760.0,117750.0,0.44109302]
[1752959023365,0.27845048,117760.0,117750.0,0.18246862]
[1752959023581,0.27845048,117760.0,117750.0,0.43260096]
[1752959023795,0.27845048,117760.0,117750.0,0.19096104]
[1752959024002,0.27845048,117760.0,117750.0,0.43260096]
[1752959025520,0.27845048,117760.0,117750.0,0.44109331]
[1752959026891,0.26995893,117760.0,117750.0,0.44109331]
[1752959028336,0.27706723,117760.0,117750.0,0.00208475]
[1752959029877,0.27706723,117760.0,117750.0,0.24372467]
[1752959031780,0.59427743,117760.0,117750.0,0.00208475]
[1752959031994,0.60881828,117760.0,117750.0,0.00208475]
[1752959032220,0.94881828,117760.0,117750.0,0.00208475]
[1752959032903,0.94881828,117760.0,117750.0,0.00108475]
[1752959033198,0.94981828,117760.0,117750.0,0.00108475]
[1752959033666,0.94881828,117760.0,117750.0,0.00108475]
[1752959033884,0.95081828,117760.0,117750.0,0.00108475]
[1752959034157,0.94981828,117760.0,117750.0,8.475e-05]
[1752959034621,0.95181828,117760.0,117750.0,8.475e-05]
[1752959038300,0.71017836,117760.0,117750.0,8.475e-05]
[1752959038549,0.95181828,117760.0,117750.0,8.475e-05]
[1752959043147,1.08265828,117760.0,117750.0,8.475e-05]
[1752959045283,0.84101836,117760.0,117750.0,8.475e-05]
[1752959045745,1.08265828,117760.0,117750.0,8.475e-05]
[1752959050433,1.3242982,117760.0,117750.0,1e-08]
[1752959050844,1.08265828,117760.0,117750.0,1e-08]
[1752959054245,1.3242982,117760.0,117750.0,1e-08]
[1752959055082,1.08265828,117760.0,117750.0,1e-08]
[1752959062934,1.3497932,117760.0,117750.0,1e-08]
[1752959063141,1.37492209,117760.0,117750.0,1e-08]
[1752959063940,1.13328217,117760.0,117750.0,1e-08]
[1752959067713,0.20140859,117730.0,117720.0,0.03206]
[1752959067918,0.41967887,117730.0,117720.0,0.03255747]
[1752959068208,0.41967887,117730.0,117720.0,0.00055747]
[1752959068209,0.42286887,117730.0,117720.0,0.00055747]
[1752959068416,0.66450879,117730.0,117720.0,0.00055747]
[1752959068883,0.42286887,117730.0,117720.0,0.00055747]
[1752959069087,0.42386887,117730.0,117720.0,0.00055747]
[1752959069883,0.42386887,117730.0,117720.0,0.00268747]
[1752959070055,0.42386887,117730.0,117720.0,0.01798747]
[1752959070303,0.42486887,117730.0,117720.0,0.01798747]
[1752959071036,0.42486887,117730.0,117720.0,0.00268747]
[1752959071365,0.50850764,117730.0,117720.0,0.00055747]
[1752959072360,0.75014756,117730.0,117720.0,0.00055747]
[1752959072581,0.50850764,117730.0,117720.0,0.00055747]
[1752959072950,0.75014756,117730.0,117720.0,0.00055747]
[1752959074624,0.50850764,117730.0,117720.0,0.00055747]
[1752959078223,0.75014756,117730.0,117720.0,0.00055747]
[1752959079761,1.09014756,117730.0,117720.0,0.00055747]
[1752959080432,1.12114756,117730.0,117720.0,0.00055747]
[1752959081943,1.09014756,117730.0,117720.0,0.00055747]
[1752959082157,0.84850764,117730.0,117720.0,0.00055747]
[1752959084032,1.09014756,117730.0,117720.0,0.00055747]
[1752959084480,0.84850764,117730.0,117720.0,0.00055747]
[1752959087004,1.12114756,117730.0,117720.0,0.00055747]
[1752959087715,1.10604756,117730.0,117720.0,0.00055747]
[1752959088389,1.09014756,117730.0,117720.0,0.00055747]
[1752959090121,1.10604756,117730.0,117720.0,0.00055747]
[1752959090733,1.12114756,117730.0,117720.0,0.00055747]
[1752959093515,1.10604756,117730.0,117720.0,0.00055747]
[1752959096666,1.09014756,117730.0,117720.0,0.00055747]
[1752959098315,0.84850764,117730.0,117720.0,0.00055747]
[1752959098520,1.09014756,117730.0,117720.0,0.00055747]
[1752959100874,0.84850764,117730.0,117720.0,0.00055747]
[1752959101074,1.09014756,117730.0,117720.0,0.00055747]
[1752959102865,1.10524756,117730.0,117720.0,0.00055747]
[1752959103071,1.2423402,117730.0,117720.0,0.00055747]
[1752959104032,0.87670764,117730.0,117720.0,0.00055747]
[1752959104449,1.06052392,117730.0,117720.0,0.00055747]
[1752959105077,1.12113811,117730.0,117720.0,0.00055747]
[1752959105641,1.09493811,117730.0,117720.0,0.00055747]
[1752959105977,0.85250764,117730.0,117720.0,0.00055747]
[1752959106561,1.09493811,117730.0,117720.0,0.00055747]
[1752959106942,1.11003811,117730.0,117720.0,0.00055747]
[1752959107360,1.12513811,117730.0,117720.0,0.00055747]
[1752959115015,0.63806887,117730.0,117720.0,0.00055747]
[1752959115223,0.76567887,117730.0,117720.0,0.03312747]
[1752959115432,0.76371887,117730.0,117720.0,0.03312747]
[1752959115643,0.76576887,117730.0,117720.0,0.01812747]
[1752959115851,0.76878887,117730.0,117720.0,0.00272747]
[1752959116082,0.82788108,117730.0,117720.0,0.00272747]
[1752959116288,1.07031155,117730.0,117720.0,0.00055747]
[1752959116937,0.82788108,117730.0,117720.0,0.00055747]
[1752959118742,0.82788108,117730.0,117720.0,0.00272747]
[1752959121561,0.82788108,117730.0,117720.0,0.00055747]
[1752959122750,1.07031155,117730.0,117720.0,0.00055747]
[1752959122959,1.08531155,117730.0,117720.0,0.00055747]
[1752959125102,0.76878887,117730.0,117720.0,0.00055747]
[1752959126501,1.01121934,117730.0,117720.0,0.00055747]
[1752959126932,0.76878887,117730.0,117720.0,0.00055747]
[1752959127137,0.95058223,117730.0,117720.0,0.00055747]
[1752959128707,0.76878887,117730.0,117720.0,0.00055747]
[1752959128859,0.95058223,117730.0,117720.0,0.00055747]
[1752959129069,0.9793342,117730.0,117720.0,0.00055747]
[1752959129315,0.66674084,117730.0,117720.0,0.00055747]
[1752959129526,0.9792942,117730.0,117720.0,0.00055747]
[1752959129863,1.00462052,117730.0,117720.0,0.00264747]
[1752959130926,1.00462052,117730.0,117720.0,0.00055747]
[1752959132278,0.82282716,117730.0,117720.0,0.00055747]
[1752959132497,1.00462052,117730.0,117720.0,0.00055747]
[1752959133358,0.87386052,117730.0,117720.0,0.00055747]
[1752959133572,1.00462052,117730.0,117720.0,0.00055747]
[1752959135275,0.82282716,117730.0,117720.0,0.00055747]
[1752959135496,0.65824519,117730.0,117720.0,0.21514083]
[1752959135715,0.65824519,117730.0,117720.0,0.39995419]
[1752959135716,0.77446434,117730.0,117720.0,0.39995419]
[1752959136155,0.77446434,117730.0,117720.0,0.21816083]
[1752959137014,0.77446434,117730.0,117720.0,0.27868722]
[1752959137905,0.74913802,117730.0,117720.0,0.45707661]
[1752959138053,0.41763203,117730.0,117720.0,0.45707661]
[1752959138269,0.40913838,117730.0,117720.0,0.45707661]
[1752959138449,0.40913838,117730.0,117720.0,0.46557119]
[1752959138856,0.40313838,117730.0,117720.0,0.46557119]
[1752959139075,0.40313838,117730.0,117720.0,0.4740657]
[1752959139319,0.40513838,117730.0,117720.0,0.4740657]
[1752959139528,0.39664452,117730.0,117720.0,0.46557127]
[1752959140159,0.39764452,117730.0,117720.0,0.46557127]
[1752959140372,0.38915051,117730.0,117720.0,0.44858188]
[1752959140584,0.38915051,117730.0,117720.0,0.27868722]
[1752959142396,0.38915051,117730.0,117720.0,0.03636747]
[1752959142620,0.38915051,117730.0,117720.0,0.27868722]
[1752959145788,0.38915051,117730.0,117720.0,0.03636747]
[1752959146086,0.38915051,117730.0,117720.0,0.27868722]
[1752959151732,0.38915051,117730.0,117720.0,0.44858188]
[1752959152059,0.25839051,117730.0,117720.0,0.27868722]
[1752959152270,0.38915051,117730.0,117720.0,0.44858188]
[1752959152649,0.38915051,117730.0,117720.0,0.27868722]
[1752959153142,0.38915051,117730.0,117720.0,0.44858188]
[1752959153543,0.38915051,117730.0,117720.0,0.27868722]
[1752959157145,0.38915051,117730.0,117720.0,0.39983129]
[1752959157706,0.38915051,117730.0,117720.0,0.39681129]
[1752959159068,0.38915051,117730.0,117720.0,0.03334747]
[1752959159284,0.38915051,117730.0,117720.0,0.39681129]
[1752959161075,0.38915051,117730.0,117720.0,0.03334747]
[1752959161305,0.38915051,117730.0,117720.0,0.39681129]
[1752959163724,0.38915051,117730.0,117720.0,0.03334747]
[1752959163942,0.38915051,117730.0,117720.0,0.39681129]
[1752959166127,0.25839051,117730.0,117720.0,0.39681129]
[1752959168260,0.25839051,117730.0,117720.0,0.56670595]
[1752959169591,0.25839051,117730.0,117720.0,0.03334747]
[1752959170054,0.25839051,117730.0,117720.0,0.39681129]
[1752959171158,0.25839051,117730.0,117720.0,0.56670595]
[1752959173638,0.25839051,117730.0,117720.0,0.39681129]
[1752959174262,0.25839051,117730.0,117720.0,0.56670595]
[1752959175044,0.25839051,117730.0,117720.0,0.20324213]
[1752959175250,0.25839051,117730.0,117720.0,0.56670595]
[1752959176943,0.25839051,117730.0,117720.0,0.57520068]
[1752959177784,0.25839051,117730.0,117720.0,0.56670595]
[1752959180330,0.25839051,117730.0,117720.0,0.53600595]
[1752959181344,0.25839051,117730.0,117720.0,0.36611129]
[1752959182028,0.25839051,117730.0,117720.0,0.53600595]
[1752959184102,0.25839051,117730.0,117720.0,0.36611129]
[1752959187766,0.25839051,117730.0,117720.0,0.53600595]
[1752959187966,0.25839051,117730.0,117720.0,0.55250595]
[1752959188180,0.25839051,117730.0,117720.0,0.56780595]
[1752959188372,0.25839051,117730.0,117720.0,0.77808118]
[1752959188373,0.003,117730.0,117720.0,0.77808118]
[1752959188825,0.003,117730.0,117720.0,0.80356818]
[1752959189700,0.002,117730.0,117720.0,0.80356818]
[1752959189919,0.002,117730.0,117720.0,0.75351627]
[1752959190165,0.002,117730.0,117720.0,0.72802927]
[1752959190570,0.00849264,117740.0,117730.0,0.19536138]
[1752959190778,0.19532849,117750.0,117740.0,0.18031909]
[1752959190987,0.28083877,117750.0,117740.0,0.68295612]
[1752959191408,0.28083877,117750.0,117740.0,0.69144926]
[1752959191619,0.28083877,117750.0,117740.0,0.69144919]
[1752959191812,0.28083877,117750.0,117740.0,0.68295612]
[1752959192250,0.28083877,117750.0,117740.0,0.69144926]
[1752959192455,0.28283877,117750.0,117740.0,0.69244926]
[1752959192657,0.28283877,117750.0,117740.0,0.67546291]
[1752959193082,0.28283877,117750.0,117740.0,0.68395612]
[1752959193293,0.28283877,117750.0,117740.0,0.69244926]
[1752959193501,0.28283877,117750.0,117740.0,0.69344926]
[1752959194384,0.28283877,117750.0,117740.0,0.67646291]
[1752959195012,0.28283877,117750.0,117740.0,0.69344912]
[1752959195267,0.28283877,117750.0,117740.0,0.70194212]
[1752959195476,0.28283877,117750.0,117740.0,0.69344912]
[1752959195717,0.28283877,117750.0,117740.0,0.68495605]
[1752959195927,0.28283877,117750.0,117740.0,0.69344912]
[1752959196145,0.28283877,117750.0,117740.0,0.68495612]
[1752959198026,0.28283877,117750.0,117740.0,0.70194233]
[1752959198691,0.11298739,117750.0,117740.0,0.70194233]
[1752959198893,0.11298739,117750.0,117740.0,0.71043533]
[1752959199051,0.08751028,117750.0,117740.0,0.74489482]
[1752959199257,0.002,117750.0,117740.0,0.74489482]
[1752959199472,0.01049191,117750.0,117740.0,0.74489482]
[1752959200530,0.002,117750.0,117740.0,0.74489482]
[1752959200954,0.002,117750.0,117740.0,0.92662673]
[1752959201805,0.002,117750.0,117740.0,0.74489482]
[1752959203644,0.002,117750.0,117740.0,0.92662673]
[1752959210007,0.01038546,117750.0,117740.0,0.92662673]
[1752959210167,0.002,117750.0,117740.0,0.92662673]
[1752959211411,0.01058617,117750.0,117740.0,0.92662673]
[1752959211593,0.002,117750.0,117740.0,0.92662673]
[1752959232601,0.002,117750.0,117740.0,0.91812673]
[1752959233821,0.002,117750.0,117740.0,0.91712673]
[1752959237405,0.002,117750.0,117740.0,0.73539482]
[1752959237633,0.002,117750.0,117740.0,0.60471482]
[1752959237840,0.002,117750.0,117740.0,0.70387482]
[1752959238299,0.002,117750.0,117740.0,0.70081482]
[1752959240447,0.002,117750.0,117740.0,0.57025482]
[1752959240688,0.002,117750.0,117740.0,0.70081482]
[1752959243853,0.002,117750.0,117740.0,0.57025482]
[1752959244082,0.002,117750.0,117740.0,0.70077482]
[1752959254600,0.02426434,117750.0,117740.0,0.1718658]
[1752959254809,0.04847206,117750.0,117740.0,0.68279583]
[1752959255015,0.04847206,117750.0,117740.0,0.69128861]
[1752959255226,0.06545668,117750.0,117740.0,0.69128861]
[1752959257169,0.06545668,117750.0,117740.0,0.56080861]
[1752959257390,0.06545668,117750.0,117740.0,0.69128861]
[1752959257595,0.23530806,117750.0,117740.0,0.69128861]
[1752959257802,0.07394917,117750.0,117740.0,0.32782479]
[1752959258013,0.24380055,117750.0,117740.0,0.32782479]
[1752959258251,0.07394917,117750.0,117740.0,0.69128861]
[1752959258761,0.24380055,117750.0,117740.0,0.69128861]
[1752959259876,0.07394917,117750.0,117740.0,0.69128861]
[1752959260329,0.24380055,117750.0,117740.0,0.69128861]
[1752959261951,0.07394917,117750.0,117740.0,0.69128861]
[1752959262380,0.25229311,117750.0,117740.0,0.69128861]
[1752959264717,0.25229311,117750.0,117740.0,0.69128875]
[1752959264923,0.24380105,117750.0,117740.0,0.69128875]
[1752959265562,0.49405862,117750.0,117740.0,0.002]
[1752959265776,0.31232671,117750.0,117740.0,0.002]
[1752959266253,0.31232671,117750.0,117740.0,0.18373191]
[1752959266456,0.31232671,117750.0,117740.0,0.002]
[1752959267289,0.44276671,117750.0,117740.0,0.002]
[1752959267497,0.62449862,117750.0,117740.0,0.002]
[1752959268132,0.44276671,117750.0,117740.0,0.002]
[1752959270021,0.31232671,117750.0,117740.0,0.18373191]
[1752959270226,0.44276671,117750.0,117740.0,0.18373191]
[1752959270441,0.44276671,117750.0,117740.0,0.002]
[1752959270649,0.44276671,117750.0,117740.0,0.18373191]
[1752959271300,0.44276671,117750.0,117740.0,0.002]
[1752959271510,0.44276671,117750.0,117740.0,0.18373191]
[1752959273180,0.44276671,117750.0,117740.0,0.002]
[1752959273384,0.44276671,117750.0,117740.0,0.18373191]
[1752959275327,0.44276671,117750.0,117740.0,0.002]
[1752959275554,0.44276671,117750.0,117740.0,0.18373191]
[1752959280415,0.44272671,117750.0,117740.0,0.18373191]
[1752959280904,0.44272671,117750.0,117740.0,0.36546382]
[1752959281391,0.08955028,117750.0,117740.0,0.56295861]
[1752959281678,0.002,117750.0,117740.0,0.77982052]
[1752959282422,0.002,117750.0,117740.0,0.80530552]
[1752959284729,0.002,117750.0,117740.0,0.26010979]
[1752959284974,0.002,117750.0,117740.0,0.80530552]
[1752959285215,0.002,117750.0,117740.0,0.62357361]
[1752959285705,0.002,117750.0,117740.0,0.80530552]
[1752959286675,0.002,117750.0,117740.0,0.80430552]
[1752959286909,0.002,117750.0,117740.0,0.80830552]
[1752959287163,0.002,117750.0,117740.0,1.69350125]
[1752959287415,0.02542359,117780.0,117770.0,0.19529503]
[1752959287655,0.11093387,117780.0,117770.0,0.50957694]
[1752959287899,0.10249,117780.0,117770.0,0.50957694]
[1752959288392,0.11097997,117780.0,117770.0,0.50957694]
[1752959288633,0.10349,117780.0,117770.0,0.51057694]
[1752959289167,0.00948975,117780.0,117770.0,0.51057694]
[1752959289401,0.01797972,117780.0,117770.0,0.51057694]
[1752959289870,0.01797965,117780.0,117770.0,0.51057694]
[1752959290583,0.03504504,117780.0,117770.0,0.51057694]
[1752959290854,0.02655507,117780.0,117770.0,0.51057694]
[1752959291102,0.02655507,117780.0,117770.0,0.32884503]
[1752959291345,0.24232373,117780.0,117770.0,0.49993632]
[1752959291581,0.24232373,117780.0,117770.0,0.50842708]
[1752959292050,0.24232373,117780.0,117770.0,0.51691777]
[1752959292289,0.25081406,117780.0,117770.0,0.51691777]
[1752959292778,0.06490595,117780.0,117770.0,0.52540839]
[1752959293021,0.04860595,117780.0,117770.0,0.58792173]
[1752959293267,0.0316255,117780.0,117770.0,0.58792173]
[1752959294266,0.0486058,117780.0,117770.0,0.58792173]
[1752959295783,0.21841391,117780.0,117770.0,0.57094042]
[1752959296236,0.04556573,117780.0,117770.0,0.57943104]
[1752959298200,0.22386417,117780.0,117770.0,0.57943104]
[1752959298429,0.05405606,117780.0,117770.0,0.57943104]
[1752959299154,0.04556573,117780.0,117770.0,0.57943104]
[1752959300486,0.22386424,117780.0,117770.0,0.57943104]
[1752959300720,0.0370754,117780.0,117770.0,0.57943104]
[1752959300951,0.0350454,117780.0,117770.0,0.57943104]
[1752959301182,0.04353566,117780.0,117770.0,0.57943104]
[1752959302180,0.0350454,117780.0,117770.0,0.57943104]
[1752959302419,0.04353566,117780.0,117770.0,0.57943104]
[1752959303256,0.0350454,117780.0,117770.0,0.57943104]
[1752959303602,0.04353566,117780.0,117770.0,0.57943104]
[1752959304160,0.00957542,117780.0,117770.0,0.61318104]
[1752959305007,0.02655507,117780.0,117770.0,0.63865804]
[1752959305415,0.02655499,117780.0,117770.0,0.63865804]
[1752959305840,0.04353529,117780.0,117770.0,0.36273279]
[1752959306079,0.2269838,117780.0,117770.0,0.59633742]
[1752959306290,0.04868529,117780.0,117770.0,0.60482804]
[1752959308860,0.2184934,117780.0,117770.0,0.60482804]
[1752959309076,0.22698373,117780.0,117770.0,0.60482804]
[1752959309410,0.22698438,117780.0,117770.0,0.60482804]
[1752959309648,0.05717627,117780.0,117770.0,0.60482804]
[1752959310083,0.21849456,117780.0,117770.0,0.58784681]
[1752959310295,0.21849456,117780.0,117770.0,0.59633757]
[1752959310505,0.04019605,117780.0,117770.0,0.61331888]
[1752959310721,0.04019605,117780.0,117770.0,0.58784188]
[1752959311543,0.03709605,117780.0,117770.0,0.58784188]
[1752959313273,0.02655528,117780.0,117770.0,0.58784188]
[1752959313508,0.00957542,117780.0,117770.0,0.62229188]
[1752959314158,0.001,117780.0,117770.0,0.62229188]
[1752959314345,0.001,117780.0,117770.0,0.96229188]
[1752959314974,0.001,117780.0,117770.0,1.26464155]
[1752959315409,0.02546529,117800.0,117790.0,0.54973598]
[1752959315623,0.11097557,117800.0,117790.0,0.69055516]
[1752959316038,0.11946424,117800.0,117790.0,0.69055516]
[1752959316638,0.11097557,117800.0,117790.0,0.69155516]
[1752959316862,0.11946431,117800.0,117790.0,0.69155516]
[1752959317092,0.02535812,117800.0,117790.0,0.57056941]
[1752959317269,0.01686967,117800.0,117790.0,0.60571941]
[1752959317498,0.01697676,117800.0,117790.0,0.36374188]
[1752959317705,0.01897676,117800.0,117790.0,0.57451941]
[1752959317915,0.002,117800.0,117790.0,0.57451941]
[1752959318352,0.01048838,117800.0,117790.0,0.57451941]
[1752959318561,0.002,117800.0,117790.0,0.57451941]
[1752959318768,0.01048838,117800.0,117790.0,0.57451941]
[1752959318979,0.002,117800.0,117790.0,0.57451941]
[1752959319478,0.002,117800.0,117790.0,0.60671941]
[1752959320107,0.01048831,117800.0,117790.0,0.60671941]
[1752959320621,0.002,117800.0,117790.0,0.60671941]
[1752959320841,0.01048831,117800.0,117790.0,0.60671941]
[1752959321251,0.002,117800.0,117790.0,0.60671941]
[1752959324864,0.002,117800.0,117790.0,0.63219341]
[1752959325915,0.002,117800.0,117790.0,0.39021588]
[1752959326124,0.002,117800.0,117790.0,0.63219341]
[1752959326543,0.002,117800.0,117790.0,0.39021588]
[1752959326742,0.002,117800.0,117790.0,0.63219341]
[1752959329640,0.002,117800.0,117790.0,0.60671941]
[1752959339106,0.002,117800.0,117790.0,0.71148206]
[1752959339706,0.002,117800.0,117790.0,0.69548206]
[1752959340468,0.002,117800.0,117790.0,0.72608206]
[1752959341063,0.002,117800.0,117790.0,0.75155306]